Cogmind - Beta 16.1 @@@ ROGUE MODE // 2026.04.22 @ 12:03:35 Player: Jgu1971 Result: Destroyed by Y-45 Defender with Beam Rifle Performance ------------- Evolutions (1) 500 Regions Visited (2) 400 Robots Destroyed (16) 80 Value Destroyed (351) 351 Prototype IDs (0) 0 Alien Tech Used (0) 0 Bonus (0) 0 TOTAL SCORE: 1331 Bonus ------- None Cogmind --------- Core Integrity 0/400 Matter 263/300 Energy 100/100 System Corruption 0% Temperature Cool (9) Movement Core (1350) Ox26 Location -9/Materials Parts ------- > --- POWER (2) -------- (None) > --- PROPULSION (2) --- (None) > --- UTILITY (2) ------ Huge Storage Unit > --- WEAPON (3) ------- (None) > --- INVENTORY (25) --- Sensor Array Peak State ------------ > --- POWER ------------ Light Ion Engine Light Ion Engine > --- PROPULSION ------- Aluminum Leg Improved Aluminum Leg > --- UTILITY ---------- Huge Storage Unit Terrain Scanner > --- WEAPON ----------- Medium Laser Assault Rifle Grenade Launcher > --- INVENTORY -------- Cooling System Sensor Array Small Laser [Rating: 10] Favorites ----------- Power Light Ion Engine Engine Light Ion Engine Propulsion Aluminum Leg Leg Aluminum Leg Utility Small Storage Unit Device Terrain Scanner Storage Small Storage Unit Weapon Medium Laser Energy Gun Medium Laser Ballistic Gun Assault Rifle Launcher Grenade Launcher Build | -11 -10 -9 ------- Run | Yrd Mat Mat Slots Evolved 2 | . . 2 Power 1 | . . 1 Propulsion . | . . . Utility . | . . . Weapon 1 | . . 1 Parts Attached 14 | 6 4 4 Power 3 | 1 1 1 Engine 3 | 1 1 1 Core . | . . . Reactor . | . . . Propulsion 3 | 2 1 . Treads . | . . . Leg 3 | 2 1 . Wheel . | . . . Hover . | . . . Flight . | . . . Utility 4 | 1 2 1 Device 2 | . 1 1 Storage 2 | 1 1 . Processor . | . . . Hackware . | . . . Protection . | . . . Artifact . | . . . Weapon 4 | 2 . 2 Energy Gun 2 | 1 . 1 Energy Cannon . | . . . Ballistic Gun 1 | 1 . . Ballistic Cannon . | . . . Launcher 1 | . . 1 Special Weapon . | . . . Impact Weapon . | . . . Slashing Weapon . | . . . Piercing Weapon . | . . . Special Melee Weapon . | . . . Unidentified Prototypes . | . . . Parts Lost 10 | . . 10 Power 2 | . . 2 Propulsion 2 | . . 2 Utility 2 | . . 2 Weapon 4 | . . 4 Highest Loss Streak 8 | . . 8 To Critical Strikes . | . . . Average Backups 2 | 1 4 2 Power 1 | . 1 . Propulsion . | . . . Utility . | . 1 1 Weapon 1 | 1 1 . Tool/Special . | . . . Unused Backups 1 | . . 1 Power . | . . . Propulsion . | . . . Utility 1 | . . 1 Weapon . | . . . Tool/Special . | . . . Average Slot Usage (%) 86 | . 89 80 Engine 12 | . 9 19 Leg 22 | . 23 19 Device 12 | . 13 10 Storage 12 | . 14 11 Energy Gun 13 | . 14 11 Ballistic Gun 10 | . 14 3 Launcher 1 | . . 5 Peak Build Rating 10 | 6 8 10 Average Rating 6 | 5 6 8 On Entrance 4 | . 6 8 Avg Prop Armor Cover (%) . | . . . Naked Turns . | . . . Heaviest Build 94 | 12 88 94 Greatest Support 23 | 20 23 23 Greatest Overweight (x) 27 | 2 8 27 Average Overweight (x) . | . 3 3 Largest Inventory Capacity 25 | 8 25 25 Average Capacity 15 | 7 23 25 Most Carried 7 | 3 7 4 Average Carried 2 | 1 4 2 Final Capacity 25 | 8 25 25 Final Carried 5 | 2 5 1 Class Distribution -------------------- 93% | Mutant 4% | Skirmisher Dominant Class ---------------- Mutant | -10/Materials Mutant | -9/Materials Resources | -11 -10 -9 ----------- Run | Yrd Mat Mat Matter Collected 426 | 231 124 71 Remotely . | . . . Salvage Created 385 | . 161 224 Parts 28 | . 18 10 Haulers Intercepted . | . . . Recyclers Shooed . | . . . Parts Field Recycled . | . . . Retrieved Matter . | . . . Parts Self-Destructed . | . . . Prevented . | . . . Parts Restored . | . . . Kills | -11 -10 -9 ------- Run | Yrd Mat Mat Combat Hostiles Destroyed 14 | . 9 5 Guns 11 | . 9 2 AOE 3 | . . 3 Classes Destroyed 4 | . 3 1 Watcher 2 | . 1 1 Swarmer 8 | . 8 . Grunt 4 | . 1 3 Sentry 2 | . . 2 Best Kill Streak 3 | . 3 2 Combat Bots Only 3 | . 3 2 Max Kills in Single Turn 2 | . 2 1 Gunslinging 1 | . 1 . Exploded 1 | . . 1 Melee . | . . . Uniques/NPCs Destroyed . | . . . Combat | -11 -10 -9 -------- Run | Yrd Mat Mat Hostile Shots Fired 136 | . 47 89 Missed 28 | . 9 19 Hits 108 | . 38 70 Projectile 108 | . 38 70 Critical Strikes 6 | . . 6 Damage Taken 1310 | . 307 1003 Core 486 | . 82 404 Absorbed by Shields . | . . . Core Remaining (%) 83 | 100 67 . Volleys Fired 69 | . 33 36 Largest 3 | . 2 3 Hottest 100 | . 70 100 Shots Fired 112 | . 66 46 Gun 105 | . 66 39 Cannon . | . . . Launcher 7 | . . 7 Special . | . . . Kinetic 35 | . 33 2 Thermal 70 | . 33 37 Explosive 7 | . . 7 Electromagnetic . | . . . Robot Hit Streak 14 | . 5 14 Robot Miss Streak 5 | . 5 3 Penetration Max . | . . . Secondary Targets 2 | . 2 . Max Gunslinging Chain 1 | . 1 . Shots Hit Robots 60 | . 26 34 Core Hits 23 | . 11 12 Critical Kills . | . . . Critical Parts Destroyed . | . . . Critical Strikes 3 | . 2 1 Burn 3 | . 2 1 Melee Attacks . | . . . Impact . | . . . Slashing . | . . . Piercing . | . . . Sneak Attacks . | . . . Combat Hostiles . | . . . Follow-up Attacks . | . . . Damage Inflicted 857 | . 318 539 Guns 634 | . 318 316 Cannons . | . . . Explosions 223 | . . 223 Melee . | . . . Ramming . | . . . Kinetic 217 | . 192 25 Thermal 417 | . 126 291 Explosive 223 | . . 223 Electromagnetic . | . . . Impact . | . . . Slashing . | . . . Piercing . | . . . Highest Corruption . | . . . Average Corruption . | . . . Corruption Purged . | . . . Corruption Blocked . | . . . Overload Shots . | . . . Overflow Damage . | . . . Projectiles . | . . . Explosions . | . . . Melee . | . . . Knockbacks . | . . . Impact . | . . . Kinetic . | . . . Secondary . | . . . Self-Inflicted Damage 75 | . . 75 Shots 3 | . . 3 Rammed 1 | . . 1 Targets Rammed 1 | . . 1 Kicked . | . . . Crushed . | . . . Highest Temperature 185 | . 63 185 Average Temperature 37 | . 20 57 Received Heat Transfer 510 | . 12 498 Siege Activations . | . . . Martial Activations . | . . . Shielding Activations . | . . . Robots Disrupted . | . . . Combat Hostiles . | . . . Robots Corrupted . | . . . Combat Hostiles . | . . . Parts Fried . | . . . Impact Corruptions . | . . . Robots Melted . | . . . Combat Hostiles . | . . . Parts Melted 2 | . 2 . Heat Transferred 1361 | . 518 843 Parts Sabotaged . | . . . Parts Stolen . | . . . Parts Stripped . | . . . Power Chain Reactions . | . . . Alert | -11 -10 -9 ------- Run | Yrd Mat Mat Maximum Alert Level . | . . . Low Security (%) 100 | 100 100 100 Level 1 . | . . . Level 2 . | . . . Level 3 . | . . . Level 4 . | . . . Level 5 . | . . . High Security . | . . . Max Security . | . . . Peak Influence 84 | . 69 84 Initial 16 | . . 16 Average 9 | . 12 28 Influence Increases 473 | . 242 231 Destroy 0b10 Robot/C 280 | . 180 100 Destroy 0b10 Robot/NC 10 | . 5 5 Destroy Leader 84 | . 42 42 Successful Hack 5 | . . 5 Destroy Structure 34 | . . 34 Partial Spotted 15 | . 15 . Lose Combat Pursuer 45 | . . 45 Influence Decreases 458 | . 203 255 Entered New Map 23 | . . 23 Time Decay 376 | . 203 173 Lost Part 59 | . . 59 Squads Dispatched 3 | . 1 2 Investigation . | . . . Extermination . | . . . Reinforcement 3 | . 1 2 Assault . | . . . Garrison . | . . . Intercept . | . . . Searches Triggered . | . . . Construction Impeded . | . . . Haulers Reinforced . | . . . Active Scanning Responses . | . . . Cargo Convoy Interrupts . | . . . Stealth | -11 -10 -9 --------- Run | Yrd Mat Mat Distress Signals 4 | . 1 3 Communications Jammed . | . . . Distress Signals . | . . . Times Spotted 39 | . 20 19 Peak Tracking Total 7 | . 4 7 Tactical Retreats 3 | . . 3 Traps | -11 -10 -9 ------- Run | Yrd Mat Mat Traps Triggered 2 | . 2 . Indirectly . | . . . Trap Hack Attempts . | . . . Triggered . | . . . Disarmed . | . . . Reprogrammed . | . . . Reused . | . . . Traps Extracted . | . . . Installed . | . . . Triggered . | . . . Machines | -11 -10 -9 ---------- Run | Yrd Mat Mat Machines Disabled . | . . . Max in Single Turn . | . . . Machines Repaired . | . . . Machines Dismantled . | . . . Machines Sabotaged . | . . . Overloaded Fab Kills . | . . . Hacking | -11 -10 -9 --------- Run | Yrd Mat Mat Machines Accessed 8 | . 5 3 Terminals 5 | . 4 1 Fabricators . | . . . Repair Stations 1 | . 1 . Recycling Units . | . . . Scanalyzers 2 | . . 2 Garrison Access . | . . . Total Hacks 21 | . 5 16 Successful 16 | . 1 15 Failed 5 | . 4 1 Catastrophic 2 | . 2 . Database Lockouts . | . . . Manual . | . . . Terminals 11 | . 4 7 Fabricators . | . . . Repair Stations 1 | . 1 . Recycling Units . | . . . Scanalyzers 9 | . . 9 Garrison Access . | . . . Terminal Hacks 7 | . 1 6 Record 3 | . . 3 Alert Level 3 | . 1 2 Maintenance Status 1 | . . 1 Fabricator Hacks . | . . . Repair Station Hacks . | . . . Recycling Unit Hacks . | . . . Scanalyzer 9 | . . 9 Insert Component 2 | . . 2 Analyze 2 | . . 2 Retrieve Study 5 | . . 5 Garrison Access Hacks . | . . . Unauthorized Hacks . | . . . Terminals . | . . . Fabricators . | . . . Repair Stations . | . . . Recycling Units . | . . . Scanalyzers . | . . . Garrison Access . | . . . Data Cores Recovered . | . . . Used . | . . . Hacking Detections 3 | . 1 2 Full Trace Events . | . . . Feedback Events . | . . . Feedback Blocked . | . . . Robot Schematics Acquired . | . . . Robots Built . | . . . Authchips . | . . . Time . | . . . Total Robot Build Rating . | . . . Part Schematics Acquired 2 | . . 2 Parts Built . | . . . Authchips . | . . . Time . | . . . Total Part Build Rating . | . . . Part Studies Acquired 5 | . . 5 Parts Repaired . | . . . Time . | . . . Parts Recycled . | . . . Recycled Matter . | . . . Retrieved Matter . | . . . Retrieved Components . | . . . Parts Scanalyzed 2 | . . 2 Part Schematics Acquired 2 | . . 2 Parts Damaged . | . . . Bothacking | -11 -10 -9 ------------ Run | Yrd Mat Mat Used RIF Installer . | . . . Robots Hacked . | . . . Non-combat . | . . . Combat . | . . . Robot Hacks Applied . | . . . Relay Couplers Released . | . . . Fabnet Peak Effective % . | . . . Robots Rewired . | . . . Allies Hacked . | . . . Hacks Repelled . | . . . Allies | -11 -10 -9 -------- Run | Yrd Mat Mat Total Allies . | . . . Largest Group . | . . . Highest-Rated Group . | . . . Highest-Rated Ally . | . . . Total Orders . | . . . Ally Attacks . | . . . Total Damage . | . . . Kills . | . . . Allies Corrupted . | . . . Allies Melted . | . . . Intel | -11 -10 -9 ------- Run | Yrd Mat Mat Active Infowar (turns) 1469 | . 1010 459 Terrain 1469 | . 1010 459 Robot Analysis Total . | . . . Derelict Logs Recovered . | . . . Drone Launches . | . . . Drone Recoveries . | . . . Exploration | -11 -10 -9 ------------- Run | Yrd Mat Mat Turns Passed 3155 | 1580 1041 534 Spaces Moved 1659 | 1277 261 121 Core 8 | 7 . 1 Treads . | . . . Legs 1651 | 1270 261 120 Wheels . | . . . Hover . | . . . Flight . | . . . Fastest Speed 50 | 50 120 315 Average Speed 174 | 119 356 361 Slowest Speed 1400 | 150 680 1400 Overloaded Moves . | . . . Propulsion Burnouts . | . . . Robots Hopped . | . . . Potential Cave-ins . | . . . Cave-ins Triggered . | . . . Exploration Rate (%) 31 | 51 33 11 Regions Visited 2 Branch Regions . Pre-discovered Areas . | . . . Known Exits Taken . | . . . Unknown Exits Taken 2 | 1 1 . Scrap Searched . | . . . Spaces Dug . | . . . Terrain Destroyed 42 | . . 42 Melee . | . . . Projectile . | . . . AOE 42 | . . 42 Terrain Rammed . | . . . Walls Destroyed . | . . . Machines Disabled . | . . . Actions | -11 -10 -9 --------- Run | Yrd Mat Mat Total 1797 | 1328 307 162 Wait 40 | 38 2 . Move 1657 | 1276 260 121 Hop . | . . . Pick Up 15 | 8 7 . Fast Attach . | . . . Attach 13 | 6 3 4 Detach . | . . . Swap 1 | . 1 . Drop 1 | . 1 . Fire 69 | . 33 36 Melee . | . . . Ram 1 | . . 1 Kick . | . . . Crush . | . . . Escape Stasis . | . . . Rewire . | . . . Trap . | . . . Miscellaneous . | . . . Route ------- -11/Scrapyard -10/Materials -9/Materials History --------- Turn | Location | Event 8 | -11/Scrapyard | Discovered new exit (range 16) 1581 | -11/Scrapyard | Entered Materials 1582 | -10/Materials | Build established: Mutant 2606 | -10/Materials | Discovered new exit (range 4) 2622 | -10/Materials | Entered another Materials area 2622 | -9/Materials | Evolved 2 slots: Power x1, Weapon x1 3139 | -9/Materials | Core integrity fell below 50% 3150 | -9/Materials | Core integrity fell below 20% 3156 | -9/Materials | Destroyed by Y-45 Defender with Beam Rifle Last Messages --------------- 03075_ Aluminum Leg+ destroyed. 03078_ Critical hit (Burn: +37). 03081_ Terrain Scanner destroyed. 03082_ Y-45 Defender destroyed. 03093_ R-06 Scavenger collects Heat Sink. 03106_ Lgt. Ion Engine+ destroyed. 03117_ W-16 Scout sends out distress signal. 03125_ K-01 Serf cleans the Scanalyzer. 03128_ Imp. Aluminum Leg+ destroyed. 03129_ K-01 Serf cleans the Scanalyzer. 03129_ Sml. Laser destroyed. 03130_ Slammed into Y-45 Defender. 03130_ Cooling System broken. 03130_ Destabilizing: Short circuit. 03141_ K-01 Serf cleans the Scanalyzer. 03141_ Critical hit (Burn: +37). 03142_ K-01 Serf cleans the Scanalyzer. 03150_ Critical hit (Burn: +37). 03153_ K-01 Serf collects debris. 03153_ Broken Cooling System destroyed. Map ----- +----------------------------------------------------+ | ?????????????????????????????#""" ## # """ | | ???????????????????????????#?# "" ## # | | ???????????????????#?#??????## == ## + | | ?????????????????????????????# ## # | | ??????????????????????????#??# # # | | ???????????????##???#?????#### = # ###### | | ?????????????? ##### #####+##### #???? | | ?????????????? %! #???? | | ?????????????????????###### # T #?#?? | | ??????????????????#???# + % #???# | | ??????????????????????# # #### #???? | | ??????????????????????# # ## ## ###???? | | ??????????????????????# # ###?####?????? | | ???????????????????#?## + ###?#???#????# | | ??????????????????????# # #?????????#??? | | ???????????????????#??# # ##??#??#?????? | | ??????????????#??#?#??# # #???#????????? | | ????????????????????#?########### #????#?#??#??? | | ??????????????????????? ?? ???### ##????##?????? | | ??????????????????? ????"?"?????# #????????#???? | | ?????????????????????"? ?"???#??# #????????????? | | ?????????????????? ???????? ??#?# #????????????? | | ?????????????????? ? ????????#?## #??#?????????? | | ?????????????#??????##+####?????# #?????###????? | | ??????????????????#?#k ######### #????????????? | | ????????????????????# w@Y # #????????????? | | ????????????????????# ##g k # #????????????? | | ????????????????#???# ## "" + + ??????????? | | ????????????????????# ## S"" # # ?????????? | | ???????????????? ??# # "" # #?? ?????????? | | ???????????????????# # # +????????????? | | ???????????????? ??+ ######## ##??#????????? | | ???????????????????# ????#?? ????#???????? | | ???????????????????# ???#??? !#???????????? | | ?????????????????? ## #???????!!!!##???????????? | | ????????????????????# ?#???#??#####????#???????? | | ????????????????????# ?????????????????????????? | | ???????????????????## ?????????????????????????? | | ????????????????????# ?#??#????????????????????? | | ????????????????????# ???#?????????????????????? | | ????????????????????? ?????????????????????????? | | ?????????????????????????????????????????????????? | | ?????????????????????????????????????????????????? | | ?????????????????????????????????????????????????? | | ?????????????????????????????????????????????????? | | ?????????????????????????????????????????????????? | | ?????????????????????????????????????????????????? | | ?????????????????????????????????????????????????? | | ?????????????????????????????????????????????????? | | ?????????????????????????????????????????????????? | +----------------------------------------------------+ Best States ------------- Heat Dissipation 50 Energy Generation 17 Energy Capacity 150 Matter Stores 300 Matter Capacity 300 Sight Range 16 Terrain Scan Range 14 Terrain Scan Density 10 Evasion (%) 55 Item Schematics ----------------- Sensor Array | -9/Materials | Scanalyzed Cooling System | -9/Materials | Scanalyzed Robot Schematics ------------------ None Fabricated ------------ Nothing Repaired ---------- Nothing Studied --------- Grenade Launcher | -9/Materials | Hacked Aluminum Leg | -9/Materials | Hacked Lgt. Ion Engine | -9/Materials | Hacked Med. Laser | -9/Materials | Hacked Imp. Aluminum Leg | -9/Materials | Hacked Alien Tech Used ----------------- None Achievements -------------- Item+ Challenges ------------ None Game ------ Seed StealthPersonalDisintegrator Manual? 0 Play Time 00:26:25 Cumulative 6.2 hours Start 2026.04.22 @ 11:38:21 End 2026.04.22 @ 12:03:35 Sessions 1 Manual Loads 0 Difficulty Rogue Special Mode None Game No. 6 Rogue 6 Adventurer 0 Explorer 0 Win Type - Total 0 Types 0/0/0/0/0/0/0/0/0/0 Lore% 6 Gallery% 5 Achievement% 6 Wizard Run 0 Options --------- Layout 1 ASCII 0 Keyboard 0 Movement Arrows Keybinds 0 Fullscreen 1 Font 24/Tamsyn Map View 50x40 Zoom Use 0% Tactical HUD 1 Map Filters NONE Filters NONE Steam 1 RUN: 4fea8cb8-a976-46a8-af99-bbe45778362a